bitfinex/quotes_SOLUSD_20250301
["timestamp","ask_amount","ask_price","bid_price","bid_amount"]
[1740789435677,20.0,147.35,147.3,6.3725]
[1740789436001,80.7,147.34,147.27,6.24]
[1740789436305,80.7,147.33,147.27,6.24]
[1740789436694,80.7,147.32,147.26,8.0185]
[1740789437224,86.1305,147.32,147.26,8.0185]
[1740789438110,86.1305,147.32,147.26,6.3725]
[1740789438599,99.34964886,147.31,147.23,0.03]
[1740789439300,18.64964886,147.29,147.23,0.03]
[1740789439506,80.7,147.28,147.23,0.03]
[1740789440919,80.7,147.27,147.23,0.03]
[1740789441528,5.4325,147.26,147.23,0.03]
[1740789442297,86.1322,147.27,147.23,0.03]
[1740789442496,80.7,147.27,147.23,0.03]
[1740789443228,86.1304,147.32,147.23,0.03]
[1740789443513,80.7,147.31,147.23,5.4636]
[1740789444107,80.7,147.31,147.24,6.2919]
[1740789444429,80.7,147.31,147.25,5.4329]
[1740789444607,86.1307,147.31,147.25,5.4329]
[1740789444811,80.7,147.31,147.25,5.4329]
[1740789445122,86.1307,147.31,147.24,11.725]
[1740789445627,18.64964886,147.3,147.24,6.2919]
[1740789445928,80.7,147.29,147.24,6.2919]
[1740789446299,80.7,147.29,147.24,11.7251]
[1740789447614,80.7,147.34,147.25,1.5066]
[1740789447817,80.7,147.34,147.25,82.5066]
[1740789448126,80.763,147.38,147.26,20.64964886]
[1740789448425,20.0,147.35,147.26,239.64964886]
[1740789449116,0.063,147.38,147.29,2.0]
[1740789449322,0.063,147.38,147.33,20.0]
[1740789449518,0.063,147.38,147.33,102.5066]
[1740789449727,0.063,147.38,147.34,6.4605]
[1740789449910,0.063,147.38,147.35,6.26]
[1740789450519,0.063,147.38,147.31,84.3360359]
[1740789450714,0.063,147.38,147.32,6.26]
[1740789451218,20.0,147.36,147.32,6.26]
[1740789452203,0.063,147.38,147.32,6.26]
[1740789452623,0.063,147.38,147.32,11.6902]
[1740789455019,0.063,147.38,147.32,6.26]
[1740789456530,80.763,147.38,147.32,6.26]
[1740789457029,0.063,147.38,147.32,92.6903]
[1740789457215,0.063,147.38,147.32,94.6903]
[1740789457524,0.063,147.38,147.32,108.2661]
[1740789458235,0.063,147.38,147.32,106.2661]
[1740789458424,0.063,147.38,147.32,108.2661]
[1740789459129,0.063,147.38,147.35,5.4292]
[1740789461114,0.063,147.38,147.34,84.43849203]
[1740789461321,0.063,147.38,147.34,81.0]
[1740789462029,0.063,147.38,147.31,15.08428585]
[1740789463424,0.063,147.38,147.31,28.66108585]
[1740789464836,0.063,147.38,147.31,9.65368585]
[1740789465531,80.763,147.38,147.31,9.65368585]
[1740789466935,5.4285,147.37,147.31,9.65368585]
[1740789469132,5.4285,147.37,147.31,15.08438585]
[1740789471540,5.4285,147.37,147.31,9.65368585]
[1740789472251,86.1911,147.38,147.31,15.08418585]
[1740789472824,80.763,147.38,147.31,15.08418585]
[1740789475744,86.1911,147.38,147.31,15.08418585]
[1740789476647,80.763,147.38,147.31,15.08418585]
[1740789477346,0.063,147.38,147.31,96.08418585]
[1740789478528,0.063,147.38,147.34,20.0]
[1740789478733,0.063,147.38,147.36,1.5851]
[1740789478937,0.063,147.38,147.36,7.7651]
[1740789479654,0.063,147.38,147.36,13.1936]
[1740789480350,0.063,147.38,147.36,6.18]
[1740789480547,0.063,147.38,147.36,11.6088]
[1740789483450,0.063,147.38,147.36,92.6088]
[1740789484944,82.2258,147.49,147.38,2.0]
[1740789485146,82.2258,147.49,147.38,221.0]
[1740789485351,80.763,147.51,147.42,20.0]
[1740789485547,0.063,147.51,147.43,6.18]
[1740789485746,0.063,147.51,147.44,18.9907]
[1740789486049,0.063,147.51,147.45,6.0802]
[1740789486440,0.063,147.51,147.44,5.4259]
[1740789486645,0.063,147.51,147.43,15.02856553]
[1740789486845,80.7,147.5,147.41,6.0802]
[1740789487046,18.64964886,147.49,147.4,5.4272]
[1740789487765,5.4244,147.48,147.4,5.4272]
[1740789487944,86.1244,147.48,147.4,5.4272]
[1740789488364,80.7,147.48,147.4,8.77672318]
[1740789488670,20.0,147.49,147.4,241.34522318]
[1740789488844,0.063,147.51,147.4,243.34522318]
[1740789489639,0.063,147.51,147.42,39.4032]
[1740789489843,0.063,147.51,147.5,20.0]
[1740789490058,0.063,147.51,147.5,125.88964886]
[1740789490259,0.063,147.51,147.5,127.31267249]
[1740789490657,0.063,147.51,147.5,133.81407249]
[1740789491469,0.063,147.51,147.5,137.15429807]
[1740789491966,0.063,147.51,147.5,93.7414]
[1740789492170,0.063,147.51,147.5,12.7414]
[1740789492362,0.063,147.51,147.5,6.24]
[1740789492742,0.063,147.51,147.5,92.6637]
[1740789492944,0.063,147.53,147.52,20.0]
[1740789493148,0.063,147.53,147.52,38.64964886]
[1740789493671,0.063,147.53,147.52,101.0]
[1740789493875,0.063,147.53,147.52,106.4229]
[1740789494172,0.0001,147.53,147.52,274.99682626]
[1740789494351,0.0001,147.53,147.52,275.11134886]
[1740789494555,0.063,147.63,147.56,20.0]
[1740789494770,0.063,147.63,147.57,6.24]
[1740789494951,0.063,147.63,147.57,225.24]
[1740789495147,0.063,147.63,147.57,87.24]
[1740789495347,0.063,147.63,147.58,18.64964886]
[1740789495864,0.063,147.63,147.6,25.15104886]
[1740789496067,0.063,147.63,147.6,87.5014]
[1740789497364,0.063,147.63,147.6,92.9213]
[1740789498048,0.063,147.63,147.61,23.60908839]
[1740789498364,0.063,147.63,147.62,6.24]
[1740789499167,0.063,147.63,147.62,34.30894886]
[1740789499570,0.063,147.63,147.62,32.30894886]
[1740789499769,0.063,147.63,147.62,30.30894886]
[1740789500860,0.063,147.63,147.62,6.24]
[1740789501068,0.063,147.63,147.6,99.1614]
[1740789503668,0.063,147.63,147.6,93.7414]
[1740789503976,0.063,147.63,147.6,99.1613]
[1740789504585,0.063,147.63,147.6,87.5014]
[1740789504758,0.063,147.63,147.6,81.0]
[1740789508568,0.063,147.63,147.6,86.4199]
[1740789508768,0.063,147.63,147.61,18.64964886]
[1740789508971,0.063,147.63,147.62,22.0715921]
[1740789509894,0.063,147.63,147.62,27.4908921]
[1740789510892,0.063,147.63,147.62,30.82998099]
[1740789511289,0.063,147.63,147.62,249.82998099]
[1740789511490,0.063,147.63,147.62,256.92773775]
[1740789515392,0.063,147.63,147.62,108.40803775]
[1740789515691,0.063,147.63,147.62,114.60803775]
[1740789517299,0.063,147.63,147.62,90.53908889]
[1740789518502,0.063,147.63,147.62,87.2]
[1740789519602,0.063,147.63,147.62,81.0]
[1740789521920,0.063,147.63,147.59,81.0]
[1740789522705,0.063,147.63,147.56,6.18]
[1740789522909,0.063,147.63,147.56,87.18]
[1740789523478,0.063,147.63,147.56,6.18]
[1740789524209,0.063,147.63,147.56,92.6015]
[1740789524382,0.063,147.63,147.57,18.64964886]
[1740789524983,0.063,147.63,147.58,5.4207]
[1740789525185,0.063,147.63,147.59,18.64964886]
[1740789525492,0.063,147.63,147.59,81.0]
[1740789526289,20.063,147.63,147.59,81.0]
[1740789527092,18.9675,147.62,147.59,81.0]
[1740789527912,7.7909,147.61,147.54,87.18]
[1740789528209,7.7909,147.61,147.53,0.03]
[1740789528210,80.7,147.6,147.53,0.03]
[1740789529306,5.4215,147.56,147.53,0.03]
[1740789529509,5.4212,147.57,147.53,0.03]
[1740789530590,86.1209,147.58,147.53,0.03]
[1740789531401,80.7,147.58,147.53,0.03]
[1740789531599,7.7909,147.61,147.54,18.64964886]
[1740789531811,7.7909,147.61,147.54,105.82964886]
[1740789532099,1.6607,147.61,147.54,105.82964886]
[1740789532302,27.0803,147.61,147.54,87.18]
[1740789533026,80.7,147.6,147.54,6.18]
[1740789533322,5.4204,147.59,147.54,6.18]
[1740789533925,5.4204,147.59,147.53,0.03]
[1740789534500,6.1302,147.58,147.53,0.03]
[1740789535013,20.0,147.55,147.53,0.03]
[1740789535207,5.4222,147.54,147.53,0.03]
[1740789535711,7.0829,147.54,147.53,0.03]
[1740789536527,1.6607,147.54,147.53,0.03]
[1740789539323,7.7393,147.58,147.53,0.03]
[1740789539629,13.16,147.58,147.53,0.03]
[1740789539926,7.7393,147.58,147.53,0.03]
[1740789540116,13.1602,147.58,147.53,0.03]
[1740789540916,7.7393,147.58,147.53,0.03]
[1740789541507,13.1601,147.58,147.53,0.03]
[1740789547843,7.0299,147.58,147.53,0.03]
[1740789549549,20.0,147.55,147.53,0.03]
[1740789549718,20.0,147.5,147.44,3.43995879]
[1740789550641,20.0,147.5,147.43,81.0]
[1740789550832,5.424,147.49,147.43,81.0]
[1740789552842,5.4248,147.47,147.39,81.0]
[1740789553051,5.4248,147.47,147.39,87.2]
[1740789553231,5.4248,147.47,147.39,81.0]
[1740789553430,1.5831,147.46,147.39,81.0]
[1740789554444,20.0,147.44,147.39,81.0]
[1740789554647,82.2831,147.46,147.38,6.23]
[1740789555031,5.4255,147.45,147.38,6.23]
[1740789555634,99.6894,147.45,147.38,6.23]
[1740789555846,20.0,147.42,147.38,6.23]
[1740789556148,20.0,147.41,147.38,0.03]
[1740789556333,20.0,147.4,147.38,0.03]
[1740789556945,5.4277,147.39,147.38,0.03]
[1740789558232,25.4275,147.4,147.38,0.03]
[1740789561450,1.5831,147.39,147.38,0.03]
[1740789561852,27.0108,147.39,147.38,0.03]
[1740789563262,80.7,147.41,147.38,0.03]
[1740789563560,1.5928,147.43,147.38,0.03]
[1740789563761,120.5007,147.47,147.38,81.03]
[1740789564055,80.7,147.51,147.4,22.13514841]
[1740789564261,1.5928,147.52,147.42,22.64964886]
[1740789564565,20.0,147.49,147.42,18.64964886]
[1740789564859,80.7,147.51,147.42,81.0]
[1740789565235,20.0,147.48,147.42,81.0]
[1740789565534,20.0,147.47,147.42,81.0]
[1740789565954,20.0,147.49,147.43,5.4263]
[1740789566158,82.2928,147.52,147.43,5.4263]
[1740789566362,1.5928,147.52,147.43,224.4263]
[1740789566940,20.0,147.5,147.43,224.4263]
[1740789567565,27.0158,147.52,147.43,219.0]
[1740789568253,0.063,147.53,147.44,18.64964886]
[1740789568642,20.0,147.52,147.44,18.64964886]
[1740789569464,20.0,147.49,147.44,81.0]
[1740789569671,5.4856,147.53,147.44,81.0]
[1740789569672,0.063,147.53,147.44,81.0]
[1740789569968,20.0,147.51,147.45,5.4255]
[1740789570170,0.063,147.53,147.45,86.4255]
[1740789570474,0.063,147.53,147.46,6.2]
[1740789570649,0.063,147.53,147.46,87.2]
[1740789571775,25.4858,147.53,147.46,87.2]
[1740789573381,25.4858,147.53,147.46,6.2]
[1740789573545,25.4858,147.53,147.42,114.67761773]
[1740789573874,39.0423,147.53,147.42,96.02796887]
[1740789574575,39.0423,147.53,147.42,89.82796887]
[1740789574747,20.0,147.49,147.42,81.0]
[1740789575069,20.0,147.48,147.42,81.0]
[1740789575745,20.0,147.48,147.4,87.2]
[1740789576147,25.4245,147.48,147.4,87.2]
[1740789577055,20.0,147.48,147.41,18.64964886]
[1740789577444,86.1233,147.51,147.41,18.64964886]
[1740789577868,20.0,147.48,147.41,81.0]
[1740789578172,5.4248,147.47,147.41,81.0]
[1740789578374,20.0,147.44,147.4,6.2]
[1740789578577,86.1248,147.47,147.4,6.2]
[1740789578880,5.4243,147.49,147.4,92.6273]
[1740789579063,5.4243,147.49,147.41,18.64964886]
[1740789579956,20.0,147.48,147.41,18.64964886]
[1740789580260,18.983,147.5,147.4,225.2]
[1740789581358,18.983,147.5,147.4,230.6274]
[1740789581557,18.983,147.5,147.4,225.2]
[1740789582380,5.4252,147.46,147.4,225.2]
[1740789582678,5.4252,147.46,147.4,87.2]
[1740789583574,5.424,147.49,147.4,92.6273]
[1740789585357,5.424,147.49,147.41,0.03]
[1740789587282,5.424,147.49,147.41,81.03]
[1740789588676,5.4229,147.52,147.42,41.05964886]
[1740789588865,0.063,147.53,147.46,18.64964886]
[1740789589179,20.063,147.53,147.47,6.28]
[1740789589373,20.0,147.52,147.47,6.28]
[1740789589782,20.0,147.52,147.46,81.0]
[1740789590170,20.0,147.49,147.43,87.4286]
[1740789590476,20.0,147.48,147.41,87.31]
[1740789590780,20.0,147.48,147.41,92.7369]
[1740789591367,20.0,147.47,147.41,92.7369]
[1740789591590,20.0,147.47,147.41,87.31]
[1740789593590,20.0,147.47,147.41,92.7369]
[1740789595194,6.28,147.52,147.42,18.64964886]
[1740789595374,11.7031,147.52,147.42,237.64964886]
[1740789595683,20.0,147.49,147.42,237.64964886]
[1740789596274,20.0,147.49,147.43,5.4263]
[1740789596473,20.0,147.48,147.43,5.4263]
[1740789598297,20.0,147.49,147.43,8.86315143]
[1740789598501,25.4241,147.49,147.42,219.0]
[1740789599196,25.4241,147.49,147.42,81.0]
[1740789599897,25.4241,147.49,147.41,0.03]
[1740789600103,38.9843,147.49,147.41,0.03]
[1740789601400,20.0,147.45,147.41,0.03]
[1740789604611,5.4259,147.44,147.41,0.03]
[1740789604792,20.0,147.42,147.41,0.03]
[1740789604990,5.4259,147.44,147.41,0.03]
[1740789605189,100.5026,147.47,147.41,0.03]
[1740789605190,5.4256,147.45,147.41,0.03]
[1740789605696,18.9895,147.45,147.41,0.03]
[1740789606610,82.3396,147.5,147.41,81.03]
[1740789606899,5.424,147.49,147.42,25.05024886]
[1740789607102,86.1238,147.5,147.42,25.05024886]
[1740789608200,86.1238,147.5,147.42,6.4006]
[1740789608506,86.1238,147.5,147.42,87.4006]
[1740789609182,86.1238,147.5,147.42,92.8272]
[1740789609603,86.1238,147.5,147.42,87.4006]
[1740789610007,20.0,147.47,147.42,87.4006]
[1740789610715,20.0,147.46,147.41,0.03]
[1740789611013,5.4255,147.45,147.41,0.03]
[1740789611809,25.4253,147.46,147.41,0.03]
[1740789612007,80.7,147.5,147.41,81.03]
[1740789612188,5.424,147.49,147.41,219.03]
[1740789613007,5.424,147.49,147.41,224.4566]
[1740789614112,18.9842,147.49,147.41,219.03]
[1740789614501,20.0,147.46,147.41,81.03]
[1740789614705,20.0,147.46,147.41,0.03]
[1740789616317,18.9894,147.45,147.41,0.03]
[1740789618208,5.4263,147.43,147.41,0.03]
[1740789620513,80.7,147.45,147.41,0.03]
[1740789620705,20.0,147.42,147.41,0.03]
[1740789622787,25.4266,147.42,147.41,0.03]
[1740789623410,106.1266,147.42,147.41,0.03]
[1740789624417,5.4255,147.45,147.41,0.03]
[1740789624717,80.7,147.46,147.41,0.03]
[1740789625012,10.52966681,147.49,147.41,99.67964886]
[1740789625516,10.52966681,147.46,147.41,99.67964886]
[1740789626218,10.52966681,147.46,147.41,81.03]
[1740789626716,10.52966681,147.46,147.42,18.64964886]
[1740789627106,86.1238,147.5,147.42,18.64964886]
[1740789627308,86.1238,147.5,147.42,99.64964886]
[1740789628096,86.1238,147.5,147.42,105.07604886]
[1740789628408,20.0,147.47,147.42,105.07604886]
[1740789631099,20.0,147.46,147.42,105.07604886]
[1740789632623,80.7,147.5,147.42,105.07604886]
[1740789632624,20.0,147.47,147.42,105.07604886]
[1740789632916,20.0,147.46,147.42,105.07604886]
[1740789633307,20.0,147.47,147.42,105.07604886]
[1740789635426,20.0,147.47,147.42,99.64964886]
[1740789636641,25.4248,147.47,147.42,99.64964886]
[1740789644841,25.4248,147.47,147.42,81.0]
[1740789649027,5.4222,147.54,147.46,2.0]
[1740789649331,15.95156681,147.55,147.47,18.64964886]
[1740789649536,15.95156681,147.55,147.48,6.18]
[1740789649735,20.0,147.52,147.48,6.18]
[1740789649914,80.7,147.54,147.48,6.18]
[1740789650114,20.0,147.51,147.48,6.18]
[1740789650335,20.0,147.49,147.44,6.4109]
[1740789650935,20.0,147.49,147.43,6.18]
[1740789651136,25.4243,147.49,147.41,81.03]
[1740789651307,20.0,147.45,147.41,0.03]
[1740789653328,25.4255,147.45,147.41,0.03]
[1740789653536,27.07,147.45,147.41,0.03]
[1740789654048,107.77,147.45,147.41,0.03]
[1740789654214,121.3339,147.45,147.41,0.03]
[1740789654716,18.64964886,147.44,147.41,0.03]
[1740789654920,18.64964886,147.42,147.41,0.0001]
[1740789655135,24.07624886,147.42,147.41,0.0001]
[1740789655336,26.07624886,147.42,147.41,0.0001]
[1740789656938,20.0,147.39,147.36,0.03]
[1740789657139,20.0,147.37,147.36,0.03]
[1740789657517,20.0,147.36,147.31,0.03]
[1740789657711,20.0,147.34,147.31,0.03]
[1740789658637,5.4299,147.33,147.31,0.03]
[1740789659019,5.4293,147.35,147.31,0.03]
[1740789659222,5.4285,147.37,147.31,0.03]
[1740789659417,18.9997,147.37,147.31,81.03]
[1740789659720,20.0,147.34,147.31,81.03]
[1740789659941,20.0,147.34,147.31,0.03]
[1740789660345,20.0,147.33,147.31,0.03]
[1740789660528,5.4303,147.32,147.31,0.03]
[1740789662141,20.0,147.33,147.31,0.03]
[1740789662340,5.4288,147.36,147.31,0.03]
[1740789662537,13.572,147.37,147.31,0.03]
[1740789662538,20.0,147.34,147.31,0.03]
[1740789662929,5.4281,147.38,147.31,81.03]
[1740789663141,5.4277,147.4,147.33,1.6178]
[1740789663448,10.52966681,147.41,147.35,18.64964886]
[1740789664234,10.52966681,147.41,147.35,237.64964886]
[1740789664439,5.4265,147.43,147.35,237.64964886]
[1740789664645,18.9888,147.46,147.36,5.4288]
[1740789664950,18.9888,147.46,147.36,224.4288]
[1740789665440,20.0,147.43,147.36,224.4288]
[1740789665949,25.4266,147.43,147.36,224.4288]
[1740789666331,25.4266,147.43,147.36,219.0]
[1740789667759,25.4896,147.43,147.36,219.0]
[1740789668462,39.0553,147.43,147.36,219.0]
[1740789669464,39.0553,147.43,147.34,87.2]
[1740789670157,5.4896,147.43,147.35,18.64964886]
[1740789671459,0.063,147.43,147.35,18.64964886]
[1740789671758,0.063,147.43,147.34,225.2]
[1740789672258,0.063,147.43,147.35,18.64964886]
[1740789672453,20.063,147.43,147.34,225.2]
[1740789673572,5.4266,147.42,147.34,225.2]
[1740789675659,5.4893,147.43,147.35,22.07435636]
[1740789675867,5.4893,147.43,147.36,6.0723]
[1740789676239,0.063,147.43,147.36,6.0723]
[1740789676443,5.4893,147.43,147.36,6.0723]
[1740789677145,0.063,147.43,147.36,11.5008]
[1740789679273,0.063,147.43,147.36,230.5008]
[1740789679562,0.063,147.43,147.36,230.5308]
[1740789680140,0.063,147.43,147.37,8.88674597]
[1740789680461,0.063,147.43,147.37,27.53639483]
[1740789682475,0.063,147.43,147.38,24.07774886]
[1740789682679,0.063,147.43,147.4,18.64964886]
[1740789682867,0.063,147.43,147.4,81.0]
[1740789683066,20.063,147.43,147.4,81.0]
[1740789683579,20.0,147.42,147.36,81.03]
[1740789683760,20.0,147.41,147.36,81.03]
[1740789683950,20.0,147.41,147.36,0.03]
[1740789684149,80.763,147.43,147.36,0.03]
[1740789684150,20.0,147.4,147.36,0.03]
[1740789684553,20.0,147.37,147.36,0.03]
[1740789685567,20.0,147.35,147.31,0.03]
[1740789685767,20.0,147.34,147.31,0.03]
[1740789686567,5.4299,147.33,147.31,0.03]
[1740789686873,7.733,147.39,147.31,81.03]
[1740789687074,1.553,147.39,147.32,6.18]
[1740789687381,6.9808,147.39,147.32,6.18]
[1740789690785,20.0,147.36,147.32,6.18]
[1740789691073,5.4292,147.35,147.31,0.03]
[1740789691791,20.0,147.36,147.31,0.03]
[1740789691966,1.553,147.39,147.32,18.64964886]
[1740789692166,1.5311,147.42,147.34,18.64964886]
[1740789692391,1.5311,147.42,147.34,99.64964886]
[1740789692580,20.0,147.41,147.34,99.64964886]
[1740789692891,20.0,147.41,147.35,5.4292]
[1740789693187,6.958,147.42,147.35,5.4292]
[1740789694687,1.5311,147.42,147.36,5.4288]
[1740789694862,0.063,147.43,147.36,5.4288]
[1740789695390,0.063,147.43,147.37,18.64964886]
[1740789695684,0.063,147.43,147.39,18.64964886]
[1740789696689,0.063,147.43,147.4,5.4274]
[1740789696996,0.063,147.43,147.41,18.64964886]
[1740789697981,0.063,147.43,147.4,219.0]
[1740789699010,0.063,147.43,147.38,81.0]
[1740789699212,0.063,147.43,147.37,6.18]
[1740789699374,21.5941,147.43,147.37,6.18]
[1740789699699,20.0,147.39,147.33,3.43187767]
[1740789699873,8.5479,147.42,147.33,3.43187767]
[1740789699874,20.0,147.38,147.33,3.43187767]
[1740789700199,20.0,147.35,147.33,3.43187767]
[1740789700609,20.0,147.35,147.31,0.03]
[1740789700610,21.5311,147.35,147.31,0.03]
[1740789700785,20.0,147.32,147.31,0.03]
[1740789701679,20.0,147.31,147.26,81.03]
[1740789702992,5.431,147.3,147.26,81.03]
[1740789707188,5.4299,147.33,147.26,81.03]
[1740789707907,1.5311,147.35,147.27,18.64964886]
[1740789708114,5.4288,147.36,147.29,18.64964886]
[1740789708294,5.4288,147.36,147.29,24.82964886]
[1740789709112,20.0,147.35,147.3,5.431]
[1740789709313,20.0,147.35,147.3,224.431]
[1740789709525,5.4281,147.38,147.3,224.431]
[1740789709808,5.4281,147.38,147.31,18.64964886]
[1740789710116,6.4338,147.42,147.31,239.074579]
[1740789710301,5.427,147.41,147.31,237.64964886]
[1740789710499,20.0,147.38,147.31,237.64964886]
[1740789710800,5.427,147.41,147.31,237.64964886]
[1740789711210,20.0,147.4,147.31,237.64964886]
[1740789711412,20.0,147.39,147.33,18.64964886]
[1740789711914,20.0,147.39,147.32,5.4303]
[1740789712090,20.0,147.39,147.31,219.0]
[1740789712886,19.28374388,147.39,147.31,219.0]
[1740789713405,5.4281,147.38,147.31,219.0]
[1740789713597,5.4281,147.38,147.31,81.0]
[1740789713798,5.4281,147.38,147.31,87.18]
[1740789714208,13.5687,147.4,147.31,87.18]
[1740789714425,0.063,147.39,147.31,87.18]
[1740789715523,0.063,147.39,147.28,25.19724886]
[1740789715524,20.0,147.36,147.28,106.19724886]
[1740789715720,20.0,147.35,147.28,87.5476]
[1740789716018,20.0,147.34,147.28,87.5476]
[1740789716703,5.4299,147.33,147.28,87.5476]
[1740789722025,5.4299,147.33,147.29,18.64964886]
[1740789722714,5.4299,147.33,147.28,225.5476]
[1740789723224,19.0048,147.33,147.28,87.5476]
[1740789723928,19.0048,147.33,147.28,81.0]
[1740789725219,20.0,147.3,147.27,6.18]
[1740789726095,20.0,147.3,147.26,81.03]
[1740789726814,20.0,147.3,147.28,0.03]
[1740789727024,80.7,147.35,147.28,0.03]
[1740789727202,20.0,147.31,147.28,81.03]
[1740789728123,5.431,147.3,147.28,81.03]
[1740789729624,20.0,147.31,147.28,81.03]
[1740789729810,39.0075,147.31,147.28,81.03]
[1740789730331,39.0075,147.31,147.28,0.03]
[1740789730546,1.6377,147.29,147.26,0.03]
[1740789730832,1.6377,147.29,147.25,0.0001]
[1740789731132,20.0,147.26,147.23,0.0001]
[1740789731332,20.0,147.24,147.22,0.0001]
[1740789731535,20.0,147.24,147.21,0.0001]
[1740789731736,20.0,147.22,147.21,0.0001]
[1740789731920,120.98734886,147.22,147.21,0.0001]
[1740789732310,48.77154886,147.22,147.21,0.0001]
[1740789733421,46.77154886,147.22,147.21,0.0001]
[1740789733735,52.20554886,147.22,147.21,0.0001]
[1740789734113,5.434,147.22,147.21,0.0001]
[1740789734443,5.4329,147.25,147.21,0.0001]
[1740789734645,20.0,147.22,147.21,0.0001]
[1740789735109,38.64964886,147.22,147.21,0.0001]
[1740789735730,25.434,147.22,147.21,0.0001]
[1740789737027,44.08364886,147.22,147.21,0.0001]
[1740789737225,46.08364886,147.22,147.21,0.0001]
[1740789737434,48.08364886,147.22,147.21,0.0001]
[1740789737931,46.08364886,147.22,147.21,0.0001]
[1740789738238,48.08364886,147.22,147.21,0.0001]
[1740789738431,25.434,147.22,147.21,0.0001]
[1740789738831,25.434,147.22,147.12,87.6513]
[1740789739017,5.4333,147.24,147.13,18.64964886]
[1740789739225,5.4333,147.24,147.13,237.64964886]
[1740789739415,20.0,147.22,147.13,237.64964886]
[1740789739832,20.0,147.23,147.13,219.0]
[1740789740039,5.434,147.22,147.13,81.0]
[1740789740314,19.0191,147.22,147.13,81.0]
[1740789740931,20.0,147.18,147.13,81.0]
[1740789741136,20.0,147.18,147.12,6.6513]
[1740789741557,20.0,147.18,147.1,81.0]
[1740789742047,5.4358,147.17,147.1,81.0]
[1740789742255,5.4358,147.17,147.09,8.2967]
[1740789744026,5.4358,147.17,147.09,13.7354]
[1740789744443,20.0,147.14,147.07,81.0]
[1740789744662,20.0,147.13,147.07,81.0]
[1740789744839,20.0,147.09,147.06,0.03]
[1740789745734,5.4392,147.08,147.06,0.03]
[1740789746549,86.1392,147.08,147.06,0.03]
[1740789747556,80.7,147.07,147.06,0.03]
[1740789747752,86.1395,147.07,147.06,0.03]
[1740789749034,5.4388,147.09,147.06,0.03]
[1740789749255,86.1385,147.1,147.06,0.03]
[1740789749558,20.0,147.07,147.06,0.03]
[1740789750962,25.4395,147.07,147.06,0.03]
[1740789751162,20.0,147.07,147.06,0.03]
[1740789752544,25.4395,147.07,147.06,0.03]
[1740789753240,20.0,147.07,147.06,0.03]
[1740789753641,24.08914886,147.07,147.06,0.03]
[1740789753843,20.0,147.03,146.95,86.4439]
[1740789754342,20.0,147.03,146.95,81.0]
[1740789754546,20.0,147.03,146.95,224.4439]